Workbook

Sheet Chart 1
B1: Chart 1 | K1: HICP Inflation | M1: =LEFT($K$1,4) & " " & LEFT(J4,2) & " " & RIGHT(J4,4) -> HICP Q2 2022 | N1: HICP inflation excl. energy, food, alchol and tobacco | S1: =LEFT($K$1,4) & "X " & LEFT(J4,2) & " " & RIGHT(J4,4) -> HICPX Q2 2022
B2: Inflation expectations: overall HICP and HICP excluding energy, food, alcohol and tobacco | M2: =LEFT($K$1,4) & " " & LEFT(J5,2) & " " & RIGHT(J5,4) -> HICP Q3 2022 | S2: =LEFT($K$1,4) & "X " & LEFT(J5,2) & " " & RIGHT(J5,4) -> HICPX Q3 2022
K3: 2022 | L3: 2023 | M3: 2024 | N3: 2022 | O3: 2023 | P3: 2024
J4: Q2 2022 | K4: 5.9863 | L4: 2.426 | M4: 1.9183 | N4: 2.9295 | O4: 2.2677 | P4: 1.9631
J5: Q3 2022 | K5: 7.3087 | L5: 3.6401 | M5: 2.1441 | N5: 3.556 | O5: 2.9007 | P5: 2.2838

Sheet Chart 2
B1: HICP | E1: HICPX | I1: Chart 2
A2: 8 | B2: 2022-09-01 | E2: 2022-09-01 | I2: Expected peak in HICP/HICPX inflation
A3: 15 | B3: 2022-09-01 | C3: 2022-10-01 | D3: 2022-11-01 | T3: =12/19 -> 0.6315789474
A4: 23 | B4: 2022-09-01 | T4: =3/7 -> 0.4285714286
A5: 24 | B5: 2022-10-01 | C5: 2022-11-01 | D5: 2022-12-01
A6: 32 | B6: 2022-07-01 | C6: 2022-08-01
A7: 39 | B7: 2022-07-01 | E7: 2022-08-01 | F7: 2022-09-01 | G7: 2022-10-01
A8: 49 | B8: 2022-09-01 | E8: 2022-05-01
A9: 88 | B9: 2022-06-01
A10: 91 | B10: 2022-06-01 | C10: 2022-07-01 | D10: 2022-08-01 | E10: 2022-07-01 | F10: 2022-08-01
A11: 95 | B11: 2022-06-01
A12: 98 | B12: 2022-09-01 | C12: 2022-10-01 | E12: 2022-05-01
A13: 104 | B13: 2022-09-01
A14: 108 | B14: 2022-10-01 | C14: 2022-11-01 | D14: 2022-12-01
A15: 112 | B15: 2022-09-01
A16: 115 | B16: 2022-09-01
A17: 117 | B17: 2022-06-01 | E17: 2022-09-01
A18: 118 | B18: 2022-07-01 | C18: 2022-08-01 | D18: 2022-09-01
A19: 128 | B19: 2022-06-01 | C19: 2022-07-01 | D19: 2022-08-01
A20: 135 | B20: 2022-09-01 | E20: 2022-10-01
B21: =COUNT(B2:B20) -> 19 | E21: =COUNT(E2:E20) -> 7
B22: =MIN(B2:G20) -> 2022-05-01
B23: =MAX(B2:D20) -> 2022-12-01
B25: 2022-05-01 | C25: 2022-06-01 | D25: 2022-07-01 | E25: 2022-08-01 | F25: 2022-09-01 | G25: 2022-10-01 | H25: 2022-11-01 | I25: 2022-12-01
A26: HICP | B26: =COUNTIF($B$2:$D$20,B$25) -> 0 | C26: =COUNTIF($B$2:$D$20,C$25) -> 5 | D26: 5 | E26: 4 | F26: 10 | G26: 4 | H26: 3 | I26: 2
A27: HICP | B27: =B26/COUNT($A2:$A20) -> 0 | C27: =C26/COUNT($A2:$A20) -> 0.2631578947 | D27: 0.2631578947 | E27: 0.2105263158 | F27: 0.5263157895 | G27: 0.2105263158 | H27: 0.1578947368 | I27: 0.1052631579
A30: HICPX | B30: =COUNTIF($E$2:$G$20,B$25) -> 2 | C30: 0 | D30: 1 | E30: 2 | F30: 3 | G30: 2 | H30: 0 | I30: 0
A31: HICPX (Rhs) | B31: =B30/COUNT($E2:$E20) -> 0.2857142857 | C31: 0 | D31: 0.1428571429 | E31: 0.2857142857 | F31: 0.4285714286 | G31: 0.2857142857 | H31: 0 | I31: 0
B37: 2022-05-01 | C37: 2022-06-01 | D37: 2022-07-01 | E37: 2022-08-01 | F37: 2022-09-01 | G37: 2022-10-01 | H37: 2022-11-01 | I37: 2022-12-01
A38: HICP | B38: =B27*100 -> 0 | C38: =C27*100 -> 26.31578947 | D38: 26.31578947 | E38: 21.05263158 | F38: 52.63157895 | G38: 21.05263158 | H38: 15.78947368 | I38: 10.52631579
A39: Padding hicp
A40: Padding hicpX
A41: HICPX (rhs) | B41: =B31*100 -> 28.57142857 | C41: =C31*100 -> 0 | D41: 14.28571429 | E41: 28.57142857 | F41: 42.85714286 | G41: 28.57142857 | H41: 0 | I41: 0
B43: =_xlfn.CONCAT("(",TEXT(B26,0),";",TEXT(B30,0),")") -> (0;2) | C43: (5;0) | D43: (5;1) | E43: (4;2) | F43: (10;3) | G43: (4;2) | H43: (3;0) | I43: (2;0)

Sheet Chart 3
B1: Chart 3
B2: Aggregate expected probability distributions for inflation 2022 - 2024 | K2: * Bins might not sum exactly to 100 % due to roundings
L4: Q3 2022 | M4: Q2 2022 | N4: Q1 2022
K5: < 0.0 | L5: 1.1e-09 | M5: 1e-10 | N5: 0.104393857
K6: 0.0 to 0.4 | L6: 1.07e-08 | M6: 1.8e-09 | N6: 0.2944524428
K7: 0.5 to 0.9 | L7: 9.92e-08 | M7: 0.0110300288 | N7: 0.640267711
K8: 1.0 to 1.4 | L8: 7.899e-07 | M8: 0.0417968521 | N8: 2.25146412
K9: 1.5 to 1.9 | L9: 0.0340963052 | M9: 0.3143904265 | N9: 3.865254717
K10: 2.0 to 2.4 | L10: 0.0454861621 | M10: 0.9523981093 | N10: 11.40742018
K11: 2.5 to 2.9 | L11: 0.0797043439 | M11: 1.734775592 | N11: 25.78356305
K12: 3.0 to 3.4 | L12: 0.1256849154 | M12: 4.190710146 | N12: 30.04218821
K13: 3.5 to 3.9 | L13: 0.4570780208 | M13: 7.603212059 | N13: 16.23966463
K14: 4.0 to 4.4* | L14: 1.326217452 | M14: 85.15168678 | N14: 9.37133109
K15: 4.5 to 4.9 | L15: 5.453864921
K16: ≥ 5.0 | L16: 92.47786698
L17: 100 | M17: 100 | N17: 100
L19: Q3 2022 | M19: Q2 2022 | N19: Q1 2022
K20: < 0.0 | L20: 0.4110308214 | M20: 1.310412423 | N20: 1.370468642
K21: 0.0 to 0.4 | L21: 0.4886945152 | M21: 1.489134631 | N21: 2.389711813
K22: 0.5 to 0.9 | L22: 0.6485289142 | M22: 3.346338457 | N22: 7.822086587
K23: 1.0 to 1.4 | L23: 1.877245406 | M23: 7.607071706 | N23: 16.88505297
K24: 1.5 to 1.9 | L24: 3.209135871 | M24: 14.5853059 | N24: 29.60788554
K25: 2.0 to 2.4 | L25: 6.993025542 | M25: 24.04338648 | N25: 23.47328907
K26: 2.5 to 2.9 | L26: 11.4827105 | M26: 19.75958805 | N26: 10.59134338
K27: 3.0 to 3.4 | L27: 16.17731921 | M27: 13.42717261 | N27: 3.850491591
K28: 3.5 to 3.9 | L28: 20.20266721 | M28: 7.789451649 | N28: 1.658216012
K29: 4.0 to 4.4* | L29: 13.9936592 | M29: 6.642138094 | N29: 2.351454401
K30: 4.5 to 4.9 | L30: 15.18765731
K31: ≥ 5.0 | L31: 9.3283255
L32: 100 | M32: 100 | N32: 100
L36: Q3 2022 | M36: Q2 2022 | N36: Q1 2022
K37: < 0.0 | L37: 1.823638185 | M37: 1.186014143 | N37: 0.9547162214
K38: 0.0 to 0.4 | L38: 2.079603167 | M38: 2.114028134 | N38: 2.267237408
K39: 0.5 to 0.9 | L39: 4.926341901 | M39: 6.690858454 | N39: 7.291839924
K40: 1.0 to 1.4 | L40: 10.20516877 | M40: 14.13966068 | N40: 14.15488495
K41: 1.5 to 1.9 | L41: 20.40820937 | M41: 25.31269313 | N41: 29.6344804
K42: 2.0 to 2.4 | L42: 21.21262744 | M42: 24.01495859 | N42: 24.5111718
K43: 2.5 to 2.9 | L43: 16.68794646 | M43: 15.2564759 | N43: 10.78023019
K44: 3.0 to 3.4 | L44: 10.15723657 | M44: 7.194436027 | N44: 5.069210638
K45: 3.5 to 3.9 | L45: 5.312651577 | M45: 2.82404626 | N45: 2.121339024
K46: 4.0 to 4.4* | L46: 3.230618828 | M46: 1.266828684 | N46: 3.214889446
K47: 4.5 to 4.9 | L47: 3.249403142
K48: ≥ 5.0 | L48: 0.7065545938
L49: 100 | M49: 100 | N49: 100

Sheet Chart 4
B1: Chart 4
B2: Longer-term inflation expectations | K2: Average point forecast | L2: Median point forecast | M2: Mean of the aggregate probability distribution
J3: 1999-01-01 | K3: 1.863606557 | L3: 1.9 | M3: 1.808074827
J4: 1999-04-01
J5: 1999-07-01
J6: 1999-10-01
J7: 2000-01-01 | K7: 1.77106383 | L7: 1.7 | M7: 1.806785714
J8: 2000-04-01
J9: 2000-07-01
J10: 2000-10-01
J11: 2001-01-01 | K11: 1.805531915 | L11: 1.8 | M11: 1.820232558
J12: 2001-04-01 | K12: 1.804 | L12: 1.8 | M12: 1.781732927
J13: 2001-07-01 | K13: 1.813235294 | L13: 1.8 | M13: 1.803316667
J14: 2001-10-01 | K14: 1.82375 | L14: 1.8 | M14: 1.846529412
J15: 2002-01-01 | K15: 1.853571429 | L15: 1.85 | M15: 1.832348485
J16: 2002-04-01 | K16: 1.855952381 | L16: 1.8 | M16: 1.882175676
J17: 2002-07-01 | K17: 1.851190476 | L17: 1.8 | M17: 1.813857143
J18: 2002-10-01 | K18: 1.85326087 | L18: 1.8 | M18: 1.838141026
J19: 2003-01-01 | K19: 1.9 | L19: 1.9 | M19: 1.865220588
J20: 2003-04-01 | K20: 1.8825 | L20: 1.85 | M20: 1.845911765
J21: 2003-07-01 | K21: 1.8825 | L21: 1.8 | M21: 1.873049428
J22: 2003-10-01 | K22: 1.937209302 | L22: 1.9 | M22: 1.935735294
J23: 2004-01-01 | K23: 1.919767442 | L23: 1.9 | M23: 1.844857143
J24: 2004-04-01 | K24: 1.912765957 | L24: 1.9 | M24: 1.838589744
J25: 2004-07-01 | K25: 1.919565217 | L25: 1.9 | M25: 1.9033125
J26: 2004-10-01 | K26: 1.892391304 | L26: 1.9 | M26: 1.883194444
J27: 2005-01-01 | K27: 1.899056522 | L27: 1.9 | M27: 1.854001646
J28: 2005-04-01 | K28: 1.886871739 | L28: 1.9 | M28: 1.851184211
J29: 2005-07-01 | K29: 1.940810811 | L29: 1.9 | M29: 1.88695169
J30: 2005-10-01 | K30: 1.88255814 | L30: 1.9 | M30: 1.886111111
J31: 2006-01-01 | K31: 1.9 | L31: 1.9 | M31: 1.8963685
J32: 2006-04-01 | K32: 1.90583617 | L32: 1.9 | M32: 1.917702703
J33: 2006-07-01 | K33: 1.916842105 | L33: 1.9 | M33: 1.890483871
J34: 2006-10-01 | K34: 1.919148936 | L34: 1.9 | M34: 1.900297619
J35: 2007-01-01 | K35: 1.914705882 | L35: 1.9 | M35: 1.90025
J36: 2007-04-01 | K36: 1.922058824 | L36: 1.9 | M36: 1.911771739
J37: 2007-07-01 | K37: 1.952272727 | L37: 2 | M37: 1.906285714
J38: 2007-10-01 | K38: 1.932608696 | L38: 1.95 | M38: 1.935723684
J39: 2008-01-01 | K39: 1.95 | L39: 1.95 | M39: 1.943554054
J40: 2008-04-01 | K40: 1.946808511 | L40: 2 | M40: 1.962565789
J41: 2008-07-01 | K41: 2.025510204 | L41: 2 | M41: 2.0507875
J42: 2008-10-01 | K42: 1.98668 | L42: 2 | M42: 2.029102564
J43: 2009-01-01 | K43: 1.940625 | L43: 2 | M43: 1.930575921
J44: 2009-04-01 | K44: 1.93344878 | L44: 2 | M44: 1.925134607
J45: 2009-07-01 | K45: 1.98 | L45: 2 | M45: 1.931941176
J46: 2009-10-01 | K46: 1.918795918 | L46: 2 | M46: 1.868218293
J47: 2010-01-01 | K47: 1.907831373 | L47: 1.9 | M47: 1.841522619
J48: 2010-04-01 | K48: 1.907105637 | L48: 1.9 | M48: 1.837276316
J49: 2010-07-01 | K49: 1.953815116 | L49: 1.9 | M49: 1.854895946
J50: 2010-10-01 | K50: 1.897634948 | L50: 1.9 | M50: 1.84627305
J51: 2011-01-01 | K51: 1.95 | L51: 2 | M51: 1.906668288
J52: 2011-04-01 | K52: 1.963289262 | L52: 2 | M52: 1.928354096
J53: 2011-07-01 | K53: 2.006745816 | L53: 2 | M53: 1.956409464
J54: 2011-10-01 | K54: 2.008629444 | L54: 2 | M54: 1.922083862
J55: 2012-01-01 | K55: 1.979359398 | L55: 2 | M55: 1.869665984
J56: 2012-04-01 | K56: 1.98728242 | L56: 2 | M56: 1.908695314
J57: 2012-07-01 | K57: 2.022608268 | L57: 2 | M57: 1.951455074
J58: 2012-10-01 | K58: 1.978266285 | L58: 2 | M58: 1.949333483
J59: 2013-01-01 | K59: 1.984694362 | L59: 2 | M59: 1.93700574
J60: 2013-04-01 | K60: 1.970472054 | L60: 1.95 | M60: 1.941156309
J61: 2013-07-01 | K61: 1.951517875 | L61: 1.9 | M61: 1.890147334
J62: 2013-10-01 | K62: 1.931046512 | L62: 2 | M62: 1.840430972
J63: 2014-01-01 | K63: 1.865481534 | L63: 1.9 | M63: 1.791836486
J64: 2014-04-01 | K64: 1.848306818 | L64: 1.9 | M64: 1.758105263
J65: 2014-07-01 | K65: 1.858863838 | L65: 1.9 | M65: 1.756335916
J66: 2014-10-01 | K66: 1.801160692 | L66: 1.8 | M66: 1.689429268
J67: 2015-01-01 | K67: 1.770239583 | L67: 1.8 | M67: 1.689924685
J68: 2015-04-01 | K68: 1.836706667 | L68: 1.85 | M68: 1.749760415
J69: 2015-07-01 | K69: 1.8567875 | L69: 1.9 | M69: 1.700852941
J70: 2015-10-01 | K70: 1.862534091 | L70: 1.9 | M70: 1.735391892
J71: 2016-01-01 | K71: 1.801522222 | L71: 1.85 | M71: 1.645409048
J72: 2016-04-01 | K72: 1.8149625 | L72: 1.8 | M72: 1.689942857
J73: 2016-07-01 | K73: 1.798696114 | L73: 1.8 | M73: 1.677570833
J74: 2016-10-01 | K74: 1.825007806 | L74: 1.8 | M74: 1.694052278
J75: 2017-01-01 | K75: 1.821960998 | L75: 1.8 | M75: 1.680593505
J76: 2017-04-01 | K76: 1.800547742 | L76: 1.8 | M76: 1.698682004
J77: 2017-07-01 | K77: 1.83350998 | L77: 1.85 | M77: 1.727355932
J78: 2017-10-01 | K78: 1.880536094 | L78: 1.9 | M78: 1.759405624
J79: 2018-01-01 | K79: 1.854834611 | L79: 1.8 | M79: 1.778412844
J80: 2018-04-01 | K80: 1.871813308 | L80: 1.9 | M80: 1.777288745
J81: 2018-07-01 | K81: 1.878334917 | L81: 1.9 | M81: 1.792523409
J82: 2018-10-01 | K82: 1.881447358 | L82: 1.9 | M82: 1.797981198
J83: 2019-01-01 | K83: 1.819450558 | L83: 1.8 | M83: 1.739880113
J84: 2019-04-01 | K84: 1.794855904 | L84: 1.8 | M84: 1.716748659
J85: 2019-07-01 | K85: 1.737512655 | L85: 1.7373525 | M85: 1.617463274
J86: 2019-10-01 | K86: 1.670537866 | L86: 1.7 | M86: 1.594722213
I87: Q1 20 | J87: 2020-01-01 | K87: 1.656925767 | L87: 1.7 | M87: 1.569151709
I88: Q2 20 | J88: 2020-04-01 | K88: 1.668777347 | L88: 1.625 | M88: 1.553226516
I89: Q3 20 | J89: 2020-07-01 | K89: 1.647611341 | L89: 1.639927108 | M89: 1.556439432
I90: Q4 20 | J90: 2020-10-01 | K90: 1.656181935 | L90: 1.6 | M90: 1.557185455
I91: Q1 21 | J91: 2021-01-01 | K91: 1.689108048 | L91: 1.7 | M91: 1.591879591
I92: Q2 21 | J92: 2021-04-01 | K92: 1.684207529 | L92: 1.654130086 | M92: 1.618695742
I93: Q3 21 | J93: 2021-07-01 | K93: 1.816036346 | L93: 1.8 | M93: 1.745999463
I94: Q4 21 | J94: 2021-10-01 | K94: 1.89861225 | L94: 1.8 | M94: 1.858318481
I95: Q1 22 | J95: 2022-01-01 | K95: 1.97201514 | L95: 1.9 | M95: 1.872056013
I96: Q2 22 | J96: 2022-04-01 | K96: 2.051985811 | L96: 2 | M96: 2.02340788
I97: Q3 22 | J97: 2022-07-01 | K97: 2.152313544 | L97: 2 | M97: 2.162076071

Sheet Chart 5
B1: Chart 5
B2: Distribution of point expectations for HICP inflation in the longer term
B3: (percentages of respondents)
K5: Q3 2022 | L5: Q2 2022 | M5: Q1 2022
J6: ≤ 1.5 | K6: 4.347826087 | L6: 0 | M6: 6
J7: 1.6 | K7: 4.347826087 | L7: 2.222222222 | M7: 6
J8: 1.7 | K8: 4.347826087 | L8: 8.888888889 | M8: 10
J9: 1.8 | K9: 8.695652174 | L9: 2.222222222 | M9: 18
J10: 1.9 | K10: 10.86956522 | L10: 22.22222222 | M10: 14
J11: 2 | K11: 30.43478261 | L11: 31.11111111 | M11: 30
J12: 2.1 | K12: 6.52173913 | L12: 13.33333333 | M12: 6
J13: 2.2 | K13: 4.347826087 | L13: 6.666666667 | M13: 6
J14: 2.3 | K14: 6.52173913 | L14: 2.222222222 | M14: 0
J15: 2.4 | K15: 2.173913043 | L15: 0 | M15: 0
J16: ≥ 2.5 | K16: 17.39130435 | L16: 11.11111111 | M16: 4
K17: 100 | L17: 100 | M17: 100

Sheet Chart 6
B1: Chart 6
B2: Aggregate probability distribution of longer-term inflation expectations
L3: Q3 2022 | M3: Q2 2022 | N3: Q1 2022
K4: < 0.0 | L4: 0.9507713207 | M4: 1.00431802 | N4: 1.62419931
K5: 0.0 to 0.4 | L5: 2.204943658 | M5: 2.012672348 | N5: 3.0021186
K6: 0.5 to 0.9 | L6: 5.689696848 | M6: 5.99730257 | N6: 8.261939456
K7: 1.0 to 1.4 | L7: 11.48051467 | M7: 13.20974397 | N7: 15.03354284
K8: 1.5 to 1.9 | L8: 20.38786318 | M8: 24.87456132 | N8: 28.70832637
K9: 2.0 to 2.4 | L9: 26.24411538 | M9: 24.31598086 | N9: 22.83383903
K10: 2.5 to 2.9 | L10: 16.39052488 | M10: 16.0443058 | N10: 10.73961482
K11: 3.0 to 3.4 | L11: 7.8021073 | M11: 7.644082755 | N11: 4.700364157
K12: 3.5 to 3.9 | L12: 3.868342756 | M12: 3.203728318 | N12: 1.897427342
K13: 4.0 to 4.4* | L13: 1.961277299 | M13: 1.693304039 | N13: 3.198628073
K14: 4.5 to 4.9 | L14: 2.641704426
K15: ≥ 5.0 | L15: 0.3781382769
L16: 100 | M16: 100 | N16: 100

Sheet Chart 7
B1: Chart 7 | J1: 22 Q2 2
B2: Expectations for real GDP growth | J2: 22 Q3 2
K3: 2022 | L3: 2023 | M3: 2024 | N3: 2025 | O3: 2026 | P3: 2027
J4: Q2 2022 | K4: 2.8546 | L4: 2.2755 | M4: 1.758 | O4: 1.4497
J5: Q3 2022 | K5: 2.7957 | L5: 1.5325 | M5: 1.7665 | P5: 1.49

Sheet Chart 8
B2: Q1 2022 | C2: Q2 2022 | D2: Q3 2022 | E2: Q4 2022 | F2: Q1 2023 | I2: Chart 8
A3: Q3 2022 SPF | B3: 0.6243503427 | C3: 0.1576557711 | D3: 0.2943073221 | E3: 0.1070172156 | F3: 0.2845496998 | I3: Expected profile of quarter-on-quarter GDP growth
A4: Q2 2022 SPF | B4: 0.2382116139 | C4: 0.3975471827 | D4: 0.6971041034 | E4: 0.5625299468 | G4: mean
A6: June 2022 Eurosystem staff macroeconomic projections | B6: 0.3199949141 | C6: 0.1848573938 | D6: 0.412986113 | E6: 0.4935689132 | F6: 0.6077332083
A8: SPF s.d. range | C8: 0.5147363917 | D8: 0.6771388201 | E8: 0.9822934409 | F8: 0.9334070042
A9: -s.d. | B9: 0.6243503427 | C9: -0.09971242471 | D9: -0.04426208794 | E9: -0.3841295048 | F9: -0.1821538023
A10: +s.d. | B10: 0.6243503427 | C10: 0.415023967 | D10: 0.6328767322 | E10: 0.5981639361 | F10: 0.7512532019
A11: s.d. | C11: 0.2573681958 | D11: 0.3385694101 | E11: 0.4911467205 | F11: 0.4667035021

Sheet Chart 9
B1: 2019 | C1: 2020 | D1: 2021 | E1: 2022 | F1: 2023 | G1: 2024 | H1: 2025 | I1: 2026 | J1: 2027 | K1: Chart 9
A2: Q3 2022 SPF | B2: 100 | C2: 93.50894483 | D2: 98.75347814 | E2: 101.5154547 | F2: 103.1207552 | G2: 104.9085145 | H2: 106.6351262 | I2: 108.296497 | J2: 109.8886348 | K2: Forecast profile of real GDP level
A3: June 2022 BMPE | B3: 100 | C3: 93.49722044 | D3: 98.56336395 | E3: 101.3160483 | F3: 103.4142593 | G3: 105.5544265
A4: Q2 2022 SPF | B4: 100 | C4: 93.49175092 | D4: 98.72247995 | E4: 101.540659 | F4: 103.8512448 | G4: 105.6769859 | H4: 107.3719165 | I4: 108.9285114
A5: Q1 2020 SPF | B5: 100 | C5: 101.0531203 | D5: 102.3148474 | E5: 103.704633 | F5: 105.1102079 | G5: 106.5317029

Sheet Chart 10
B1: Chart 10
B2: Aggregate probability distributions for GDP growth expectations 2022 - 2024
L4: Q3 2022 | M4: Q2 2022 | N4: Q1 0212
K5: < -1.0 | L5: 0.0116546154 | M5: 0.3435468246 | N5: 0.0819577341
K6: -0.5 to -0.9 | L6: 0.0467599717 | M6: 0.3092491282 | N6: 0.1274314298
K7: 0.0 to -0.4 | L7: 0.1902818931 | M7: 0.787630999 | N7: 0.1401795332
K8: 0.0 to 0.4 | L8: 0.593653344 | M8: 1.107813083 | N8: 0.2256414564
K9: 0.5 to 0.9 | L9: 1.247426084 | M9: 1.914690052 | N9: 0.3515304883
K10: 1.0 to 1.4 | L10: 3.122234706 | M10: 3.744399826 | N10: 0.4990614323
K11: 1.5 to 1.9 | L11: 9.026587788 | M11: 9.070258375 | N11: 1.283716018
K12: 2.0 to 2.4 | L12: 22.62966831 | M12: 19.1631728 | N12: 2.853624247
K13: 2.5 to 2.9 | L13: 33.70496498 | M13: 29.14459038 | N13: 6.786050514
K14: 3.0 to 3.4 | L14: 19.46923021 | M14: 19.53952388 | N14: 13.60255301
K15: 3.5 to 3.9 | L15: 6.125287642 | M15: 10.26365154 | N15: 30.66743626
K16: ≥ 4.0 | L16: 3.832250458 | M16: 4.61147312 | N16: 43.38081788
L18: 100 | M18: 100 | N18: 100
L20: Q3 2022 | M20: Q2 2022 | N20: Q1 0212
K21: < -1.0 | L21: 2.299508341 | M21: 0.2951687261 | N21: 0.2230950597
K22: -0.5 to -0.9 | L22: 2.882882715 | M22: 0.8067405265 | N22: 0.3286396641
K23: 0.0 to -0.4 | L23: 5.618794728 | M23: 1.375276076 | N23: 0.4927741053
K24: 0.0 to 0.4 | L24: 9.741588886 | M24: 3.116209104 | N24: 0.9675985281
K25: 0.5 to 0.9 | L25: 12.72701036 | M25: 5.62916854 | N25: 2.411826267
K26: 1.0 to 1.4 | L26: 15.9912628 | M26: 9.378481333 | N26: 4.945678007
K27: 1.5 to 1.9 | L27: 21.42013992 | M27: 16.13235512 | N27: 12.12389759
K28: 2.0 to 2.4 | L28: 14.939404 | M28: 22.75480265 | N28: 22.42875677
K29: 2.5 to 2.9 | L29: 8.030069033 | M29: 21.71071889 | N29: 26.22124431
K30: 3.0 to 3.4 | L30: 3.484943169 | M30: 11.41677669 | N30: 15.65481077
K31: 3.5 to 3.9 | L31: 1.477383615 | M31: 4.044615081 | N31: 7.047712214
K32: ≥ 4.0 | L32: 1.387012431 | M32: 3.339687258 | N32: 7.153966703
L34: 100 | M34: 100 | N34: 100
L37: Q3 2022 | M37: Q2 2022 | N37: Q1 0212
K38: < -1.0 | L38: 1.348417704 | M38: 0.2059603451 | N38: 0.4320102222
K39: -0.5 to -0.9 | L39: 1.251699904 | M39: 1.106055812 | N39: 0.6650651756
K40: 0.0 to -0.4 | L40: 2.123927374 | M40: 1.487280552 | N40: 1.290851877
K41: 0.0 to 0.4 | L41: 5.057303574 | M41: 4.011269345 | N41: 3.547721901
K42: 0.5 to 0.9 | L42: 9.87613995 | M42: 8.269875736 | N42: 8.733626812
K43: 1.0 to 1.4 | L43: 18.21375774 | M43: 16.55357108 | N43: 18.98127237
K44: 1.5 to 1.9 | L44: 23.94844266 | M44: 29.08272128 | N44: 31.90380927
K45: 2.0 to 2.4 | L45: 18.13662298 | M45: 22.23101801 | N45: 19.08873817
K46: 2.5 to 2.9 | L46: 11.89047461 | M46: 10.06758959 | N46: 8.022290885
K47: 3.0 to 3.4 | L47: 4.781753939 | M47: 3.929037127 | N47: 3.667558572
K48: 3.5 to 3.9 | L48: 1.979445158 | M48: 2.07730701 | N48: 1.737854365
K49: ≥ 4.0 | L49: 1.392014404 | M49: 0.9783141208 | N49: 1.929200386
L51: 100 | M51: 100 | N51: 100

Sheet Chart 11
B1: Chart 11
B2: Aggregate probability distribution of longer-term GDP growth expectations
L4: Q3 2022 | M4: Q2 2022 | N4: Q1 2022
K5: < -1.0 | L5: 0.6783942734 | M5: 0.7294783755 | N5: 0.9317619638
K6: -0.5 to -0.9 | L6: 0.9536001125 | M6: 1.102920525 | N6: 1.072296426
K7: 0.0 to -0.4 | L7: 2.158504576 | M7: 2.317872319 | N7: 2.227231694
K8: 0.0 to 0.4 | L8: 6.297649392 | M8: 5.530829058 | N8: 5.25228433
K9: 0.5 to 0.9 | L9: 14.1181045 | M9: 12.72860801 | N9: 12.25046962
K10: 1.0 to 1.4 | L10: 23.44646087 | M10: 25.10091754 | N10: 22.67562838
K11: 1.5 to 1.9 | L11: 23.23427016 | M11: 27.43588347 | N11: 29.40819304
K12: 2.0 to 2.4 | L12: 14.06707136 | M12: 13.48124822 | N12: 13.53111773
K13: 2.5 to 2.9 | L13: 7.529265794 | M13: 6.222491899 | N13: 6.260759597
K14: 3.0 to 3.4 | L14: 4.092924241 | M14: 3.111133419 | N14: 3.126985836
K15: 3.5 to 3.9 | L15: 1.865618355 | M15: 1.13892754 | N15: 1.395423983
K16: ≥ 4.0 | L16: 1.558136367 | M16: 1.099689631 | N16: 1.867847392
L18: 100 | M18: 100 | N18: 100

Sheet Chart 12
B1: Chart 12 | J1: 22 Q2 2
B2: Expectations for the unemployment rate | J2: 22 Q3 2
K3: 2022 | L3: 2023 | M3: 2024 | N3: 2025 | O3: 2026 | P3: 2027
J4: Q2 2022 | K4: 6.95 | L4: 6.82 | M4: 6.74 | O4: 6.59
J5: Q3 2022 | K5: 6.75 | L5: 6.68 | M5: 6.59 | P5: 6.37

Sheet Chart 13
B1: Chart 13
B2: Aggregate probability distributions for the unemployment rate 2022 - 2024 | K2: Q3 2022 | L2: Q2 2022 | M2: Q1 0212
J3: <4.0 | K3: 0.0584172256
J4: 4.0 to 4.4 | K4: 0.1012372515
J5: 4.5 to 4.9 | K5: 0.6374618619
J6: 5.0 to 5.4* | K6: 2.185504918 | L6: 0.9724835877 | M6: 0.7498820222
J7: 5.5 to 5.9 | K7: 5.306217203 | L7: 2.4738369 | M7: 1.697252667
J8: 6.0 to 6.4 | K8: 18.61983099 | L8: 11.6089098 | M8: 7.348891927
J9: 6.5 to 6.9 | K9: 45.53985162 | L9: 38.8406894 | M9: 26.81899162
J10: 7.0 to 7.4 | K10: 19.48972928 | L10: 27.82625987 | M10: 37.79755917
J11: 7.5 to 7.9 | K11: 4.48452058 | L11: 11.94389736 | M11: 17.8679712
J12: 8.0 to 8.4 | K12: 2.025031515 | L12: 3.675394404 | M12: 4.571955089
J13: 8.5 to 8.9 | K13: 0.9258912925 | L13: 1.467372941 | M13: 1.858883867
J14: 9.0 to 9.4 | K14: 0.3700207196 | L14: 0.6069481896 | M14: 0.7850171945
J15: 9.5 to 9.9 | K15: 0.1660474856 | L15: 0.3192187291 | M15: 0.2844204853
J16: ≥ 10.0 | K16: 0.0902380493 | L16: 0.2649888184 | M16: 0.2191747623
K17: =SUM(K3:K16) -> 100 | L17: =SUM(L3:L16) -> 100 | M17: =SUM(M3:M16) -> 100
K19: Q3 2022 | L19: Q2 2022 | M19: Q1 0212
J20: <4.0 | K20: 0.0762246934
J21: 4.0 to 4.4 | K21: 0.4617335196
J22: 4.5 to 4.9 | K22: 1.456763239
J23: 5.0 to 5.4* | K23: 4.276713844 | L23: 2.460667214 | M23: 2.737349314
J24: 5.5 to 5.9 | K24: 8.88979583 | L24: 5.492282492 | M24: 5.335868269
J25: 6.0 to 6.4 | K25: 19.83384484 | L25: 17.84850142 | M25: 15.68662681
J26: 6.5 to 6.9 | K26: 32.73777169 | L26: 34.36027227 | M26: 29.93132342
J27: 7.0 to 7.4 | K27: 18.2054281 | L27: 21.53901643 | M27: 27.59019085
J28: 7.5 to 7.9 | K28: 8.155297528 | L28: 10.82173099 | M28: 10.69193269
J29: 8.0 to 8.4 | K29: 3.450299559 | L29: 4.04522701 | M29: 4.386143067
J30: 8.5 to 8.9 | K30: 1.546275684 | L30: 1.631572969 | M30: 1.615150694
J31: 9.0 to 9.4 | K31: 0.6155292189 | L31: 0.8965483698 | M31: 0.9072928428
J32: 9.5 to 9.9 | K32: 0.1855132023 | L32: 0.5489252277 | M32: 0.517741709
J33: ≥ 10.0 | K33: 0.1088090641 | L33: 0.3552556075 | M33: 0.600380344
K34: =SUM(K20:K33) -> 100 | L34: =SUM(L20:L33) -> 100 | M34: =SUM(M20:M33) -> 100
K36: Q3 2022 | L36: Q2 2022 | M36: Q1 0212
J37: <4.0 | K37: 0.4386887891
J38: 4.0 to 4.4 | K38: 1.16332735
J39: 4.5 to 4.9 | K39: 2.23861176
J40: 5.0 to 5.4* | K40: 4.809780393 | L40: 3.564845193 | M40: 4.616001687
J41: 5.5 to 5.9 | K41: 11.13011793 | L41: 7.783727811 | M41: 7.838037975
J42: 6.0 to 6.4 | K42: 23.61497327 | L42: 21.70082754 | M42: 19.02032305
J43: 6.5 to 6.9 | K43: 26.35887701 | L43: 30.77562502 | M43: 26.80780927
J44: 7.0 to 7.4 | K44: 14.99049503 | L44: 19.68039137 | M44: 24.41330511
J45: 7.5 to 7.9 | K45: 7.345228995 | L45: 8.872236943 | M45: 9.044366603
J46: 8.0 to 8.4 | K46: 4.290807103 | L46: 3.624631302 | M46: 4.186379843
J47: 8.5 to 8.9 | K47: 2.355944639 | L47: 1.950514057 | M47: 1.9435181
J48: 9.0 to 9.4 | K48: 0.6133093183 | L48: 0.9562262469 | M48: 0.9681795495
J49: 9.5 to 9.9 | K49: 0.4135976159 | L49: 0.6409580495 | M49: 0.5201439068
J50: ≥ 10.0 | K50: 0.236240796 | L50: 0.4500164679 | M50: 0.6419349171
K51: =SUM(K37:K50) -> 100 | L51: =SUM(L37:L50) -> 100 | M51: =SUM(M37:M50) -> 100

Sheet Chart 14
B1: Chart 14
B2: Aggregate probability distribution of longer-term unemployment rate expectations | K2: Q3 2022 | L2: Q2 2022 | M2: Q1 0212
J3: <4.0 | K3: 2.227523907
J4: 4.0 to 4.4 | K4: 1.524125823 | L4: 0 | M4: 0
J5: 4.5 to 4.9 | K5: 2.483275041 | L5: 0 | M5: 0 | Q5: 2022Q3
J6: 5.0 to 5.4* | K6: 6.511977634 | L6: 6.05429215 | M6: 6.006530248 | Q6: 2022Q4
J7: 5.5 to 5.9 | K7: 12.75608099 | L7: 12.93519008 | M7: 10.13845048 | Q7: 2023Q1
J8: 6.0 to 6.4 | K8: 19.79663427 | L8: 21.91207551 | M8: 18.51316769 | Q8: 2023Q2
J9: 6.5 to 6.9 | K9: 20.364166 | L9: 27.03003688 | M9: 25.0282871 | Q9: 2023
J10: 7.0 to 7.4 | K10: 15.96405914 | L10: 14.43650698 | M10: 17.70389212 | Q10: 2024
J11: 7.5 to 7.9 | K11: 8.85090308 | L11: 7.893816931 | M11: 9.507088528
J12: 8.0 to 8.4 | K12: 4.823900518 | L12: 4.487176577 | M12: 5.882670064
J13: 8.5 to 8.9 | K13: 2.402514573 | L13: 2.306470885 | M13: 3.107226381
J14: 9.0 to 9.4 | K14: 1.410792749 | L14: 1.400691578 | M14: 1.674332326
J15: 9.5 to 9.9 | K15: 0.7086708702 | L15: 0.849648407 | M15: 1.157600487
J16: ≥ 10.0 | K16: 0.1753753987 | L16: 0.694094018 | M16: 1.280754578
K17: =SUM(K3:K16) -> 100 | L17: =SUM(L3:L16) -> 100 | M17: =SUM(M3:M16) -> 100 | Q17: 2022
Q18: 2023
Q19: 2024
Q20: 2025
Q21: 2026
Q22: 2027

Sheet Chart 15
B1: Chart 15
B2: Expectations for other variables | K2: Interest rate on ECB's main refinancing operations (%) | P2: USD/EUR exchange rate
M3: Q3 2022 | N3: Q2 2022 | R3: Q3 2022 | S3: Q2 2022
M4: 2022Q3 | N4: 2022Q2 | R4: 2022Q3 | S4: 2022Q2
K5: Q3 2022 | L5: 2022Q3 | M5: 0.4617021277 | N5: 0.0425 | P5: Q3 2022 | Q5: 2022Q3 | R5: 1.05238457 | S5: 1.098430641
K6: Q4 2022 | L6: 2022Q4 | M6: 0.9463475177 | N6: 0.1397916667 | P6: Q4 2022 | Q6: 2022Q4 | R6: 1.059490979 | S6: 1.105638807
K7: Q1 2023 | L7: 2023Q1 | M7: 1.294219858 | N7: 0.3276041667 | P7: Q1 2023 | Q7: 2023Q1 | R7: 1.070247019 | S7: 1.11806078
K8: Q2 2023 | L8: 2023Q2 | M8: 1.501956522 | P8: Q2 2023 | Q8: 2023Q2 | R8: 1.079597188
K9: 2022 | L9: 2022 | P9: 2022 | Q9: 2022
K10: 2023 | L10: 2023 | M10: 1.529166667 | N10: 0.5951136364 | P10: 2023 | Q10: 2023 | R10: 1.08878935 | S10: 1.128095523
K11: 2024 | L11: 2024 | M11: 1.7805 | N11: 0.988 | P11: 2024 | Q11: 2024 | R11: 1.116194089 | S11: 1.152442442
K14: Oil price (USD) | P14: Annual growth in compensation peremployee (annual percentage changes)
M15: Q3 2022 | N15: Q2 2022 | R15: Q3 2022 | S15: Q2 2022
M16: 2022Q3 | N16: 2022Q2 | R16: 2022Q3 | S16: 2022Q2
K17: Q3 2022 | L17: 2022Q3 | M17: 113.655626 | N17: 104.8952417 | P17: 2022 | Q17: 2022 | R17: 3.910328123 | S17: 3.215230917
K18: Q4 2022 | L18: 2022Q4 | M18: 108.5721193 | N18: 99.74183959 | P18: 2023 | Q18: 2023 | R18: 3.816157384 | S18: 3.110308219
K19: Q1 2023 | L19: 2023Q1 | M19: 103.7139601 | N19: 95.96874231 | P19: 2024 | Q19: 2024 | R19: 3.24242407 | S19: 2.638027004
K20: Q2 2023 | L20: 2023Q2 | M20: 99.55356151 | P20: 2025 | Q20: 2025
K21: 2022 | L21: 2022 | P21: 2026 | Q21: 2026 | S21: 2.410314855
K22: 2023 | L22: 2023 | M22: 98.87640679 | N22: 92.82964001 | Q22: 2027 | R22: 2.960706416
K23: 2024 | L23: 2024 | M23: 89.25825584 | N23: 88.74886631
